[Event "Titled Tuesday Blitz August 23 Late 2022"]
[White "Livaic, Leon"]
[Black "Moroni, Luca Jr"]
[WhiteFideId "14531534"]
[BlackFideId "865834"]
[WhiteElo "2540"]
[BlackElo "2573"]
[Result "0-1"]
[Round "08"]
[TimeControl "180+1"]
[Date "2022.08.23"]
[WhiteClock "0:00:05"]
[BlackClock "0:00:01"]

1. d4 {[%clk 0:03:00]}  g6 {[%clk 0:02:59]} 2. c4 {[%clk 0:03:01]}  Bg7 {[%clk 0:02:59]} 3. Nc3 {[%clk 0:03:01]}  d6 {[%clk 0:02:59]} 4. e4 {[%clk 0:03:00]}  c5 {[%clk 0:02:59]} 5. d5 {[%clk 0:02:59]}  Bxc3+ {[%clk 0:03:00]} 6. bxc3 {[%clk 0:02:58]}  e5 {[%clk 0:03:00]} 7. f4 {[%clk 0:02:48]}  Qh4+ {[%clk 0:03:00]} 8. g3 {[%clk 0:02:47]}  Qe7 {[%clk 0:03:00]} 9. fxe5 {[%clk 0:02:12]}  Qxe5 {[%clk 0:03:01]} 10. Qd3 {[%clk 0:02:13]}  Nf6 {[%clk 0:02:46]} 11. Bg2 {[%clk 0:02:08]}  Bf5 {[%clk 0:02:39]} 12. Bf4 {[%clk 0:02:01]}  Qe7 {[%clk 0:02:37]} 13. Bxd6 {[%clk 0:01:16]}  Qxd6 {[%clk 0:02:38]} 14. exf5 {[%clk 0:01:16]}  Nbd7 {[%clk 0:02:36]} 15. Nf3 {[%clk 0:01:14]}  O-O-O {[%clk 0:02:28]} 16. O-O {[%clk 0:01:14]}  Ng4 {[%clk 0:02:26]} 17. Rae1 {[%clk 0:01:09]}  Nge5 {[%clk 0:02:14]} 18. Nxe5 {[%clk 0:01:09]}  Nxe5 {[%clk 0:02:15]} 19. Qe4 {[%clk 0:01:08]}  f6 {[%clk 0:02:15]} 20. fxg6 {[%clk 0:01:06]}  hxg6 {[%clk 0:02:14]} 21. Qf4 {[%clk 0:01:00]}  Rdf8 {[%clk 0:02:10]} 22. h4 {[%clk 0:00:55]}  Kc7 {[%clk 0:02:01]} 23. a4 {[%clk 0:00:52]}  Rh5 {[%clk 0:01:29]} 24. a5 {[%clk 0:00:50]}  Rf7 {[%clk 0:01:17]} 25. Bh3 {[%clk 0:00:36]}  Rf8 {[%clk 0:01:06]} 26. Bg4 {[%clk 0:00:32]}  Rhh8 {[%clk 0:00:54]} 27. Be6 {[%clk 0:00:32]}  Rh5 {[%clk 0:00:38]} 28. Kg2 {[%clk 0:00:27]}  Nd3 {[%clk 0:00:29]} 29. Qxd6+ {[%clk 0:00:27]}  Kxd6 {[%clk 0:00:30]} 30. Rb1 {[%clk 0:00:27]}  Rh7 {[%clk 0:00:30]} 31. Bh3 {[%clk 0:00:18]}  Re7 {[%clk 0:00:26]} 32. Be6 {[%clk 0:00:15]}  Rh7 {[%clk 0:00:21]} 33. Rf3 {[%clk 0:00:14]}  Ne5 {[%clk 0:00:21]} 34. Rf4 {[%clk 0:00:15]}  Rhh8 {[%clk 0:00:15]} 35. Rbf1 {[%clk 0:00:13]}  Ke7 {[%clk 0:00:14]} 36. Bh3 {[%clk 0:00:13]}  f5 {[%clk 0:00:13]} 37. Rb1 {[%clk 0:00:08]}  Rb8 {[%clk 0:00:13]} 38. Rf2 {[%clk 0:00:06]}  Nxc4 {[%clk 0:00:11]} 39. Re2+ {[%clk 0:00:06]}  Kd6 {[%clk 0:00:11]} 40. Re6+ {[%clk 0:00:06]}  Kxd5 {[%clk 0:00:12]} 41. Rxg6 {[%clk 0:00:07]}  Ne5 {[%clk 0:00:07]} 42. Rg5 {[%clk 0:00:04]}  Kc4 {[%clk 0:00:06]} 43. Rxf5 {[%clk 0:00:04]}  Nd3 {[%clk 0:00:06]} 44. Rbf1 {[%clk 0:00:03]}  Rhe8 {[%clk 0:00:07]} 45. Rf7 {[%clk 0:00:03]}  Kxc3 {[%clk 0:00:07]} 46. Kg1 {[%clk 0:00:03]}  b5 {[%clk 0:00:06]} 47. Bf5 {[%clk 0:00:04]}  b4 {[%clk 0:00:05]} 48. Rf3 {[%clk 0:00:03]}  c4 {[%clk 0:00:05]} 49. Rc7 {[%clk 0:00:04]}  Rbd8 {[%clk 0:00:04]} 50. h5 {[%clk 0:00:01]}  b3 {[%clk 0:00:04]} 51. Rxa7 {[%clk 0:00:01]}  b2 {[%clk 0:00:04]} 52. Rb7 {[%clk 0:00:02]}  Re1+ {[%clk 0:00:05]} 53. Kg2 {[%clk 0:00:01]}  b1=Q {[%clk 0:00:04]} 54. Rxb1 {[%clk 0:00:02]}  Rxb1 {[%clk 0:00:04]} 55. h6 {[%clk 0:00:03]}  Rb2+ {[%clk 0:00:04]} 56. Kh3 {[%clk 0:00:03]}  Rh8 {[%clk 0:00:02]} 57. h7 {[%clk 0:00:03]}  Rb5 {[%clk 0:00:02]} 58. g4 {[%clk 0:00:03]}  Rxa5 {[%clk 0:00:03]} 59. g5 {[%clk 0:00:04]}  Rxf5 {[%clk 0:00:03]} 60. Rxf5 {[%clk 0:00:05]}  Rxh7+ {[%clk 0:00:03]} 61. Kg4 {[%clk 0:00:05]}  Rh8 {[%clk 0:00:04]} 62. g6 {[%clk 0:00:05]}  Kd2 {[%clk 0:00:04]} 63. Kg5 {[%clk 0:00:05]}  c3 {[%clk 0:00:04]} 64. Rf7 {[%clk 0:00:04]}  Rc8 {[%clk 0:00:02]} 65. Rc7 {[%clk 0:00:05]}  Rxc7 {[%clk 0:00:01]} 0-1


[Site "https://www.chess.com"]

[Event "Titled Tuesday Blitz August 23 Late 2022"]
[White "Makarian, Rudik"]
[Black "Schmakel, Sam"]
[WhiteFideId "44105681"]
[BlackFideId "2039311"]
[WhiteElo "2403"]
[BlackElo "2356"]
[Result "1-0"]
[Round "08"]
[TimeControl "180+1"]
[Date "2022.08.23"]
[WhiteClock "0:00:30"]
[BlackClock "0:00:01"]

1. d3 {[%clk 0:02:50]}  g6 {[%clk 0:02:59]} 2. g3 {[%clk 0:02:48]}  Bg7 {[%clk 0:02:58]} 3. Bg2 {[%clk 0:02:46]}  d5 {[%clk 0:02:57]} 4. f4 {[%clk 0:02:45]}  Nf6 {[%clk 0:02:56]} 5. Nf3 {[%clk 0:02:45]}  O-O {[%clk 0:02:57]} 6. O-O {[%clk 0:02:42]}  c5 {[%clk 0:02:57]} 7. Ne5 {[%clk 0:02:40]}  Nbd7 {[%clk 0:02:44]} 8. e4 {[%clk 0:02:33]}  Nxe5 {[%clk 0:02:09]} 9. fxe5 {[%clk 0:02:31]}  Ng4 {[%clk 0:02:09]} 10. exd5 {[%clk 0:02:28]}  Nxe5 {[%clk 0:02:09]} 11. Nc3 {[%clk 0:02:26]}  c4 {[%clk 0:01:22]} 12. d4 {[%clk 0:02:21]}  Nd7 {[%clk 0:01:22]} 13. Kh1 {[%clk 0:02:16]}  Nf6 {[%clk 0:01:15]} 14. Qe2 {[%clk 0:02:15]}  a6 {[%clk 0:01:13]} 15. a4 {[%clk 0:02:13]}  Bd7 {[%clk 0:01:11]} 16. Qxc4 {[%clk 0:02:10]}  b5 {[%clk 0:01:11]} 17. Qe2 {[%clk 0:02:07]}  b4 {[%clk 0:01:06]} 18. Ne4 {[%clk 0:02:07]}  Nxd5 {[%clk 0:01:04]} 19. Bg5 {[%clk 0:01:56]}  h6 {[%clk 0:01:00]} 20. Nc5 {[%clk 0:01:25]}  Bc6 {[%clk 0:00:58]} 21. Bd2 {[%clk 0:01:21]}  a5 {[%clk 0:00:58]} 22. Ne6 {[%clk 0:01:19]}  Qd7 {[%clk 0:00:39]} 23. Nxf8 {[%clk 0:01:19]}  Rxf8 {[%clk 0:00:40]} 24. Rae1 {[%clk 0:01:18]}  Bxa4 {[%clk 0:00:38]} 25. Qc4 {[%clk 0:01:03]}  e6 {[%clk 0:00:35]} 26. Qc5 {[%clk 0:00:56]}  Bb5 {[%clk 0:00:32]} 27. Bxd5 {[%clk 0:00:49]}  Qxd5+ {[%clk 0:00:03]} 28. Qxd5 {[%clk 0:00:48]}  exd5 {[%clk 0:00:04]} 29. Rf4 {[%clk 0:00:43]}  Rc8 {[%clk 0:00:04]} 30. c3 {[%clk 0:00:42]}  bxc3 {[%clk 0:00:04]} 31. Bxc3 {[%clk 0:00:42]}  h5 {[%clk 0:00:02]} 32. Re7 {[%clk 0:00:40]}  Be8 {[%clk 0:00:03]} 33. Ra7 {[%clk 0:00:38]}  a4 {[%clk 0:00:03]} 34. Kg2 {[%clk 0:00:38]}  Bf8 {[%clk 0:00:03]} 35. Rf2 {[%clk 0:00:35]}  Bd6 {[%clk 0:00:03]} 36. Re2 {[%clk 0:00:35]}  Bb5 {[%clk 0:00:02]} 37. Rf2 {[%clk 0:00:35]}  Be8 {[%clk 0:00:01]} 38. Kf3 {[%clk 0:00:33]}  Kg7 {[%clk 0:00:01]} 39. Ke3 {[%clk 0:00:33]}  g5 {[%clk 0:00:01]} 40. Rf5 {[%clk 0:00:31]}  Kg6 {[%clk 0:00:01]} 41. Rxd5 {[%clk 0:00:31]}  Bb4 {[%clk 0:00:01]} 42. Bxb4 {[%clk 0:00:30]} 1-0


[Site "https://www.chess.com"]

[Event "Titled Tuesday Blitz August 23 Late 2022"]
[White "Matinian, Nikita"]
[Black "Vovk, Orest"]
[WhiteFideId "24129100"]
[BlackFideId "14113490"]
[WhiteElo "2422"]
[BlackElo "2203"]
[Result "1-0"]
[Round "08"]
[TimeControl "180+1"]
[Date "2022.08.23"]
[WhiteClock "0:01:36"]
[BlackClock "0:00:23"]

1. e4 {[%clk 0:03:00]}  g5 {[%clk 0:02:54]} 2. d4 {[%clk 0:03:00]}  h6 {[%clk 0:02:51]} 3. Nc3 {[%clk 0:03:01]}  Bg7 {[%clk 0:02:51]} 4. h4 {[%clk 0:03:00]}  g4 {[%clk 0:02:50]} 5. Be3 {[%clk 0:02:55]}  d6 {[%clk 0:02:46]} 6. Bc4 {[%clk 0:02:50]}  c6 {[%clk 0:02:41]} 7. a4 {[%clk 0:02:50]}  Qa5 {[%clk 0:02:33]} 8. Ne2 {[%clk 0:02:48]}  Nf6 {[%clk 0:02:30]} 9. Ng3 {[%clk 0:02:44]}  Nbd7 {[%clk 0:02:26]} 10. Nf5 {[%clk 0:02:27]}  Bf8 {[%clk 0:02:13]} 11. Qd3 {[%clk 0:02:25]}  e6 {[%clk 0:01:51]} 12. Ng3 {[%clk 0:02:20]}  d5 {[%clk 0:01:49]} 13. Bb3 {[%clk 0:02:18]}  dxe4 {[%clk 0:01:38]} 14. Nxe4 {[%clk 0:02:19]}  Nxe4 {[%clk 0:01:37]} 15. Qxe4 {[%clk 0:02:20]}  Nf6 {[%clk 0:01:26]} 16. Qe5 {[%clk 0:02:20]}  Qxe5 {[%clk 0:01:21]} 17. dxe5 {[%clk 0:02:21]}  Nd7 {[%clk 0:01:21]} 18. Ne4 {[%clk 0:02:17]}  Nxe5 {[%clk 0:01:16]} 19. Bd4 {[%clk 0:02:17]}  Bg7 {[%clk 0:01:16]} 20. Nd6+ {[%clk 0:02:08]}  Kd7 {[%clk 0:01:03]} 21. Bxe5 {[%clk 0:01:59]}  Bxe5 {[%clk 0:01:03]} 22. Nxf7 {[%clk 0:02:00]}  Bxb2 {[%clk 0:01:00]} 23. Rd1+ {[%clk 0:02:00]}  Ke7 {[%clk 0:00:59]} 24. Nxh8 {[%clk 0:02:00]}  Bc3+ {[%clk 0:00:58]} 25. Ke2 {[%clk 0:01:59]}  Bxh8 {[%clk 0:00:57]} 26. f3 {[%clk 0:01:49]}  g3 {[%clk 0:00:52]} 27. f4 {[%clk 0:01:48]}  e5 {[%clk 0:00:44]} 28. Kf3 {[%clk 0:01:47]}  exf4 {[%clk 0:00:40]} 29. Rhe1+ {[%clk 0:01:46]}  Kf6 {[%clk 0:00:33]} 30. Kxf4 {[%clk 0:01:46]}  Kg6 {[%clk 0:00:24]} 31. Rd6+ {[%clk 0:01:43]}  Bf6 {[%clk 0:00:23]} 32. Re8 {[%clk 0:01:36]} 1-0


[Site "https://www.chess.com"]

[Event "Titled Tuesday Blitz August 23 Late 2022"]
[White "Navarrete Mendez, Gonzalo Alberto"]
[Black "Papasimakopoulos, Alexandros"]
[WhiteFideId "5106850"]
[BlackFideId "4244125"]
[WhiteElo "2261"]
[BlackElo "2357"]
[Result "0-1"]
[Round "08"]
[TimeControl "180+1"]
[Date "2022.08.23"]
[WhiteClock "0:00:01"]
[BlackClock "0:00:44"]

1. e4 {[%clk 0:03:00]}  e6 {[%clk 0:02:59]} 2. d4 {[%clk 0:02:59]}  d5 {[%clk 0:03:00]} 3. Nc3 {[%clk 0:02:59]}  Bb4 {[%clk 0:02:59]} 4. e5 {[%clk 0:02:59]}  b6 {[%clk 0:02:59]} 5. a3 {[%clk 0:02:54]}  Bf8 {[%clk 0:02:59]} 6. Nce2 {[%clk 0:02:44]}  Ba6 {[%clk 0:02:59]} 7. c3 {[%clk 0:02:44]}  c5 {[%clk 0:02:58]} 8. Nf3 {[%clk 0:02:43]}  Ne7 {[%clk 0:02:58]} 9. g3 {[%clk 0:02:44]}  Nf5 {[%clk 0:02:52]} 10. Bg2 {[%clk 0:02:42]}  Nc6 {[%clk 0:02:52]} 11. Qa4 {[%clk 0:02:07]}  Qc8 {[%clk 0:02:51]} 12. b4 {[%clk 0:01:58]}  Bc4 {[%clk 0:02:35]} 13. Nd2 {[%clk 0:01:51]}  Bxe2 {[%clk 0:02:28]} 14. Kxe2 {[%clk 0:01:50]}  cxd4 {[%clk 0:02:28]} 15. Bb2 {[%clk 0:01:33]}  a6 {[%clk 0:02:24]} 16. Rhc1 {[%clk 0:01:14]}  b5 {[%clk 0:02:23]} 17. Qd1 {[%clk 0:01:00]}  d3+ {[%clk 0:02:20]} 18. Kxd3 {[%clk 0:00:50]}  Nxe5+ {[%clk 0:02:17]} 19. Ke2 {[%clk 0:00:50]}  Bd6 {[%clk 0:02:07]} 20. c4 {[%clk 0:00:45]}  bxc4 {[%clk 0:01:39]} 21. Bxe5 {[%clk 0:00:17]}  Bxe5 {[%clk 0:01:40]} 22. Rab1 {[%clk 0:00:07]}  Rb8 {[%clk 0:01:30]} 23. Kf1 {[%clk 0:00:06]}  O-O {[%clk 0:01:29]} 24. Nf3 {[%clk 0:00:05]}  Bf6 {[%clk 0:01:30]} 25. h4 {[%clk 0:00:05]}  Qc6 {[%clk 0:01:21]} 26. Bh3 {[%clk 0:00:05]}  Nd6 {[%clk 0:01:21]} 27. Bg2 {[%clk 0:00:05]}  Qb6 {[%clk 0:01:19]} 28. Ng5 {[%clk 0:00:04]}  Bxg5 {[%clk 0:01:19]} 29. hxg5 {[%clk 0:00:04]}  Rfd8 {[%clk 0:01:11]} 30. Qh5 {[%clk 0:00:04]}  a5 {[%clk 0:01:00]} 31. b5 {[%clk 0:00:02]}  a4 {[%clk 0:00:59]} 32. Re1 {[%clk 0:00:02]}  Qc5 {[%clk 0:00:56]} 33. Kg1 {[%clk 0:00:03]}  Nxb5 {[%clk 0:00:53]} 34. Bh3 {[%clk 0:00:04]}  g6 {[%clk 0:00:52]} 35. Qh6 {[%clk 0:00:04]}  Nd4 {[%clk 0:00:51]} 36. Rbd1 {[%clk 0:00:03]}  Nf3+ {[%clk 0:00:51]} 37. Kg2 {[%clk 0:00:04]}  Nxe1+ {[%clk 0:00:51]} 38. Rxe1 {[%clk 0:00:05]}  Rb2 {[%clk 0:00:51]} 39. Rf1 {[%clk 0:00:02]}  Qd4 {[%clk 0:00:46]} 40. Qh4 {[%clk 0:00:01]}  Qxh4 {[%clk 0:00:45]} 41. gxh4 {[%clk 0:00:02]}  c3 {[%clk 0:00:44]} 42. Rc1 {[%clk 0:00:02]}  d4 {[%clk 0:00:44]} 43. Bg4 {[%clk 0:00:01]}  c2 {[%clk 0:00:44]} 0-1


[Site "https://www.chess.com"]

[Event "Titled Tuesday Blitz August 23 Late 2022"]
[White "Nazaretyan, Tigran"]
[Black "Shirov, Alexei"]
[WhiteFideId "24162345"]
[BlackFideId "2209390"]
[WhiteElo "2183"]
[BlackElo "2678"]
[Result "0-1"]
[Round "08"]
[TimeControl "180+1"]
[Date "2022.08.23"]
[WhiteClock "0:00:02"]
[BlackClock "0:00:38"]

1. d4 {[%clk 0:02:59]}  d5 {[%clk 0:02:59]} 2. c4 {[%clk 0:02:58]}  c6 {[%clk 0:02:59]} 3. Nf3 {[%clk 0:02:58]}  Nf6 {[%clk 0:02:59]} 4. Nc3 {[%clk 0:02:58]}  e6 {[%clk 0:02:58]} 5. e3 {[%clk 0:02:58]}  Nbd7 {[%clk 0:02:57]} 6. Qc2 {[%clk 0:02:58]}  Bd6 {[%clk 0:02:56]} 7. Be2 {[%clk 0:02:58]}  O-O {[%clk 0:02:55]} 8. O-O {[%clk 0:02:58]}  dxc4 {[%clk 0:02:55]} 9. a4 {[%clk 0:02:58]}  e5 {[%clk 0:02:52]} 10. Bxc4 {[%clk 0:02:57]}  Qe7 {[%clk 0:02:48]} 11. h3 {[%clk 0:02:51]}  e4 {[%clk 0:02:40]} 12. Nd2 {[%clk 0:02:50]}  Nb6 {[%clk 0:02:39]} 13. Ba2 {[%clk 0:02:47]}  Bf5 {[%clk 0:02:37]} 14. f3 {[%clk 0:02:32]}  Nbd5 {[%clk 0:02:22]} 15. Ndxe4 {[%clk 0:02:09]}  Kh8 {[%clk 0:02:08]} 16. Bb1 {[%clk 0:01:53]}  Nxc3 {[%clk 0:01:56]} 17. bxc3 {[%clk 0:01:51]}  Rae8 {[%clk 0:01:56]} 18. Qb3 {[%clk 0:01:24]}  Nxe4 {[%clk 0:01:54]} 19. fxe4 {[%clk 0:01:24]}  Bxe4 {[%clk 0:01:54]} 20. Bxe4 {[%clk 0:01:23]}  Qxe4 {[%clk 0:01:53]} 21. Qxb7 {[%clk 0:01:23]}  Re6 {[%clk 0:01:08]} 22. Rxf7 {[%clk 0:01:09]}  Rxf7 {[%clk 0:01:03]} 23. Qxf7 {[%clk 0:01:07]}  Rf6 {[%clk 0:00:59]} 24. Qh5 {[%clk 0:00:59]}  Qd3 {[%clk 0:00:53]} 25. Ba3 {[%clk 0:00:40]}  Qxe3+ {[%clk 0:00:51]} 26. Kh1 {[%clk 0:00:38]}  Bxa3 {[%clk 0:00:51]} 27. Qa5 {[%clk 0:00:15]}  h6 {[%clk 0:00:43]} 28. Qxa7 {[%clk 0:00:11]}  Bd6 {[%clk 0:00:41]} 29. Qa8+ {[%clk 0:00:02]}  Kh7 {[%clk 0:00:41]} 30. Qxc6 {[%clk 0:00:02]}  Qf4 {[%clk 0:00:38]} 0-1


[Site "https://www.chess.com"]

[Event "Titled Tuesday Blitz August 23 Late 2022"]
[White "Noboa Silva, Kevin"]
[Black "Fishbein, Alexander"]
[WhiteFideId "3618471"]
[BlackFideId "2000377"]
[WhiteElo "2172"]
[BlackElo "2410"]
[Result "0-1"]
[Round "08"]
[TimeControl "180+1"]
[Date "2022.08.23"]
[WhiteClock "0:00:01"]
[BlackClock "0:00:18"]

1. d4 {[%clk 0:03:00]}  Nf6 {[%clk 0:02:59]} 2. c4 {[%clk 0:03:00]}  c5 {[%clk 0:03:00]} 3. d5 {[%clk 0:03:00]}  b5 {[%clk 0:03:00]} 4. Qc2 {[%clk 0:03:00]}  b4 {[%clk 0:03:00]} 5. e4 {[%clk 0:02:57]}  d6 {[%clk 0:02:59]} 6. a3 {[%clk 0:02:56]}  a5 {[%clk 0:02:55]} 7. axb4 {[%clk 0:02:55]}  cxb4 {[%clk 0:02:55]} 8. c5 {[%clk 0:02:55]}  dxc5 {[%clk 0:02:54]} 9. Bb5+ {[%clk 0:02:52]}  Bd7 {[%clk 0:02:53]} 10. Bc4 {[%clk 0:02:52]}  e5 {[%clk 0:02:41]} 11. Nf3 {[%clk 0:02:47]}  Bd6 {[%clk 0:02:40]} 12. Be3 {[%clk 0:02:46]}  O-O {[%clk 0:02:40]} 13. Nbd2 {[%clk 0:02:45]}  a4 {[%clk 0:02:39]} 14. h3 {[%clk 0:02:44]}  Na6 {[%clk 0:02:35]} 15. O-O {[%clk 0:02:41]}  b3 {[%clk 0:02:34]} 16. Qc3 {[%clk 0:02:40]}  Nb4 {[%clk 0:02:33]} 17. Nxe5 {[%clk 0:02:38]}  Nc2 {[%clk 0:02:30]} 18. Rac1 {[%clk 0:02:28]}  Nxe3 {[%clk 0:02:30]} 19. fxe3 {[%clk 0:02:27]}  Qe7 {[%clk 0:02:24]} 20. Nc6 {[%clk 0:01:52]}  Bxc6 {[%clk 0:02:21]} 21. dxc6 {[%clk 0:01:53]}  Be5 {[%clk 0:02:17]} 22. Qd3 {[%clk 0:01:48]}  Bxb2 {[%clk 0:02:17]} 23. Rb1 {[%clk 0:01:40]}  Rad8 {[%clk 0:02:14]} 24. Bd5 {[%clk 0:01:38]}  Be5 {[%clk 0:02:05]} 25. Nc4 {[%clk 0:01:38]}  Bc7 {[%clk 0:02:02]} 26. Ra1 {[%clk 0:01:34]}  Ra8 {[%clk 0:01:58]} 27. Ra3 {[%clk 0:01:27]}  Rfe8 {[%clk 0:01:47]} 28. Nb2 {[%clk 0:01:18]}  Qe5 {[%clk 0:01:44]} 29. Nxa4 {[%clk 0:01:00]}  b2 {[%clk 0:01:44]} 30. Ra2 {[%clk 0:00:37]}  Rab8 {[%clk 0:01:42]} 31. Rb1 {[%clk 0:00:31]}  Qh2+ {[%clk 0:01:29]} 32. Kf2 {[%clk 0:00:20]}  Bg3+ {[%clk 0:01:29]} 33. Kf3 {[%clk 0:00:19]}  Be5 {[%clk 0:01:29]} 34. Kf2 {[%clk 0:00:17]}  h6 {[%clk 0:01:16]} 35. Nxb2 {[%clk 0:00:16]}  Rb4 {[%clk 0:01:04]} 36. Nc4 {[%clk 0:00:15]}  Rxc4 {[%clk 0:00:52]} 37. Qxc4 {[%clk 0:00:12]}  Qg3+ {[%clk 0:00:52]} 38. Kf1 {[%clk 0:00:10]}  Qxe3 {[%clk 0:00:44]} 39. Bxf7+ {[%clk 0:00:10]}  Kh7 {[%clk 0:00:42]} 40. Bxe8 {[%clk 0:00:09]}  Nxe4 {[%clk 0:00:41]} 41. Bg6+ {[%clk 0:00:04]}  Kxg6 {[%clk 0:00:39]} 42. Qe6+ {[%clk 0:00:05]}  Bf6 {[%clk 0:00:28]} 43. Qg4+ {[%clk 0:00:04]}  Kh7 {[%clk 0:00:27]} 44. Re2 {[%clk 0:00:04]}  Ng3+ {[%clk 0:00:22]} 45. Qxg3 {[%clk 0:00:04]}  Qxg3 {[%clk 0:00:21]} 46. Rc1 {[%clk 0:00:03]}  Bd4 {[%clk 0:00:20]} 47. Rd1 {[%clk 0:00:03]}  Qf4+ {[%clk 0:00:20]} 48. Ke1 {[%clk 0:00:03]}  Bc3+ {[%clk 0:00:19]} 49. Rdd2 {[%clk 0:00:04]}  Bxd2+ {[%clk 0:00:19]} 50. Rxd2 {[%clk 0:00:02]}  Qe4+ {[%clk 0:00:19]} 51. Kd1 {[%clk 0:00:02]}  Qxc6 {[%clk 0:00:20]} 52. Kc2 {[%clk 0:00:02]}  c4 {[%clk 0:00:20]} 53. Kc3 {[%clk 0:00:02]}  Qe4 {[%clk 0:00:19]} 54. Kb2 {[%clk 0:00:01]}  Qe3 {[%clk 0:00:19]} 55. Kc1 {[%clk 0:00:01]}  c3 {[%clk 0:00:18]} 0-1


[Site "https://www.chess.com"]

[Event "Titled Tuesday Blitz August 23 Late 2022"]
[White "Ostrovskiy, Aleksandr"]
[Black "Levine, Joseph"]
[WhiteFideId "2034239"]
[BlackFideId "30940346"]
[WhiteElo "2340"]
[BlackElo "1810"]
[Result "0-1"]
[Round "08"]
[TimeControl "180+1"]
[Date "2022.08.23"]
[WhiteClock "0:00:01"]
[BlackClock "0:00:04"]

1. d4 {[%clk 0:03:00]}  d5 {[%clk 0:02:58]} 2. Bf4 {[%clk 0:03:00]}  Nf6 {[%clk 0:02:57]} 3. e3 {[%clk 0:02:58]}  Bf5 {[%clk 0:02:58]} 4. c4 {[%clk 0:02:58]}  e6 {[%clk 0:02:57]} 5. Nc3 {[%clk 0:02:58]}  Nbd7 {[%clk 0:02:54]} 6. Nf3 {[%clk 0:02:54]}  Bd6 {[%clk 0:02:53]} 7. Bxd6 {[%clk 0:02:48]}  cxd6 {[%clk 0:02:54]} 8. cxd5 {[%clk 0:02:48]}  Nxd5 {[%clk 0:02:53]} 9. Nxd5 {[%clk 0:02:40]}  exd5 {[%clk 0:02:54]} 10. Bd3 {[%clk 0:02:40]}  Be4 {[%clk 0:02:54]} 11. O-O {[%clk 0:02:39]}  O-O {[%clk 0:02:53]} 12. Bxe4 {[%clk 0:02:33]}  dxe4 {[%clk 0:02:54]} 13. Nd2 {[%clk 0:02:33]}  d5 {[%clk 0:02:52]} 14. Qb3 {[%clk 0:02:32]}  Nb6 {[%clk 0:02:51]} 15. a4 {[%clk 0:02:33]}  Qd6 {[%clk 0:02:42]} 16. Rfc1 {[%clk 0:02:22]}  a5 {[%clk 0:02:23]} 17. Rc5 {[%clk 0:02:17]}  f5 {[%clk 0:02:17]} 18. Rac1 {[%clk 0:02:12]}  Rf7 {[%clk 0:02:12]} 19. Rb5 {[%clk 0:02:04]}  Ra6 {[%clk 0:02:08]} 20. Rcc5 {[%clk 0:02:01]}  f4 {[%clk 0:02:04]} 21. Nxe4 {[%clk 0:01:52]}  Qg6 {[%clk 0:01:42]} 22. Rxb6 {[%clk 0:01:18]}  Rxb6 {[%clk 0:01:25]} 23. Rc8+ {[%clk 0:01:13]}  Rf8 {[%clk 0:01:25]} 24. Qxd5+ {[%clk 0:01:12]}  Re6 {[%clk 0:01:03]} 25. Rxf8+ {[%clk 0:00:18]}  Kxf8 {[%clk 0:01:04]} 26. Qc5+ {[%clk 0:00:07]}  Kg8 {[%clk 0:00:39]} 27. f3 {[%clk 0:00:06]}  fxe3 {[%clk 0:00:37]} 28. Qc8+ {[%clk 0:00:06]}  Re8 {[%clk 0:00:33]} 29. Qxb7 {[%clk 0:00:06]}  e2 {[%clk 0:00:16]} 30. Kf2 {[%clk 0:00:05]}  Qxg2+ {[%clk 0:00:16]} 31. Kxg2 {[%clk 0:00:04]}  e1=Q {[%clk 0:00:17]} 32. Qd5+ {[%clk 0:00:04]}  Kh8 {[%clk 0:00:17]} 33. Ng5 {[%clk 0:00:02]}  Re2+ {[%clk 0:00:14]} 34. Kh3 {[%clk 0:00:03]}  Qf1+ {[%clk 0:00:14]} 35. Kg4 {[%clk 0:00:03]}  Rg2+ {[%clk 0:00:10]} 36. Kf5 {[%clk 0:00:03]}  Qd3+ {[%clk 0:00:08]} 37. Ke6 {[%clk 0:00:02]}  Qg6+ {[%clk 0:00:07]} 38. Ke7 {[%clk 0:00:01]}  Qxg5+ {[%clk 0:00:07]} 39. Qxg5 {[%clk 0:00:01]}  Rxg5 {[%clk 0:00:08]} 40. Ke6 {[%clk 0:00:02]}  Kg8 {[%clk 0:00:07]} 41. d5 {[%clk 0:00:03]}  Kf8 {[%clk 0:00:07]} 42. f4 {[%clk 0:00:03]}  Rg2 {[%clk 0:00:04]} 43. Kd7 {[%clk 0:00:03]}  Rxh2 {[%clk 0:00:04]} 44. d6 {[%clk 0:00:03]}  Rd2 {[%clk 0:00:04]} 45. Kc7 {[%clk 0:00:02]}  h5 {[%clk 0:00:04]} 46. d7 {[%clk 0:00:01]}  Ke7 {[%clk 0:00:04]} 0-1


[Site "https://www.chess.com"]